bitfinex-derivatives/quotes_SOLF0:USTF0_20250731
["timestamp","ask_amount","ask_price","bid_price","bid_amount"]
[1753989803581,3.21,176.37,176.29,15.44731547]
[1753989803781,3.21,176.33,176.31,9.77451547]
[1753989803986,3.21,176.32,176.31,6.60451547]
[1753989804181,3.21,176.32,176.29,9.77451547]
[1753989804377,5.6721,176.32,176.29,6.60451547]
[1753989804583,3.21,176.4,176.29,6.60451547]
[1753989804883,5.6725,176.31,176.29,6.60451547]
[1753989805079,6.60451547,176.37,176.27,9.77451547]
[1753989805382,8.8824,176.31,176.29,3.17]
[1753989805579,3.21,176.31,176.29,3.17]
[1753989806280,3.21,176.3,176.27,6.60451547]
[1753989806482,3.21,176.37,176.27,6.60451547]
[1753989806883,11.3413,176.36,176.27,6.60451547]
[1753989807088,3.21,176.34,176.26,3.17]
[1753989807382,5.6734,176.28,176.26,3.17]
[1753989807578,3.21,176.28,176.26,3.17]
[1753989807779,3.21,176.28,176.25,6.60451547]
[1753989807780,11.3427,176.34,176.24,14.4993205]
[1753989807979,3.21,176.33,176.25,3.17]
[1753989808582,9.81451547,176.33,176.25,3.17]
[1753989808775,3.25,176.32,176.23,11.3293205]
[1753989808979,3.25,176.32,176.23,14.4993205]
[1753989809179,3.25,176.32,176.23,15.44911547]
[1753989809382,3.25,176.32,176.23,9.77451547]
[1753989809785,5.6739,176.26,176.24,3.17]
[1753989809987,3.25,176.27,176.23,6.60451547]
[1753989810181,3.25,176.27,176.25,3.17]
[1753989810388,8.9236,176.27,176.25,3.17]
[1753989811188,8.9232,176.29,176.26,3.17]
[1753989811384,8.9232,176.29,176.27,3.17]
[1753989811588,11.3398,176.39,176.27,3.17]
[1753989811589,3.25,176.35,176.28,8.8432]
[1753989811784,3.25,176.35,176.29,6.60451547]
[1753989811978,3.25,176.35,176.29,9.77451547]
[1753989812184,3.25,176.35,176.29,15.44721547]
[1753989812382,3.25,176.35,176.29,9.77451547]
[1753989812983,8.9217,176.33,176.29,6.60451547]
[1753989813184,3.25,176.33,176.31,3.17]
[1753989813492,6.60451547,176.35,176.26,14.4993205]
[1753989813694,3.25,176.34,176.26,9.77451547]
[1753989813987,5.6729,176.29,176.26,9.77451547]
[1753989814183,3.25,176.32,176.24,14.4993205]
[1753989814388,3.25,176.32,176.24,9.77451547]
[1753989814587,3.25,176.28,176.26,3.17]
[1753989814786,3.25,176.37,176.27,3.17]
[1753989814979,3.25,176.37,176.3,6.60451547]
[1753989815179,11.25910629,176.4,176.3,9.77451547]
[1753989815581,3.25,176.32,176.3,9.77451547]
[1753989815984,3.25,176.32,176.3,12.27691547]
[1753989816286,3.25,176.39,176.31,3.17]
[1753989816794,3.25,176.33,176.31,3.17]
[1753989817386,6.60451547,176.4,176.3,6.60451547]
[1753989817387,3.25,176.39,176.3,6.60451547]
[1753989817690,5.6721,176.32,176.29,3.17]
[1753989817990,3.25,176.3,176.28,6.60451547]
[1753989818184,3.25,176.29,176.28,6.60451547]
[1753989818388,3.25,176.35,176.26,9.77451547]
[1753989818789,5.6733,176.28,176.24,4.72480503]
[1753989818987,3.25,176.28,176.25,3.17]
[1753989819292,3.25,176.28,176.27,3.17]
[1753989819691,3.25,176.33,176.27,3.17]
[1753989820294,5.6724,176.31,176.27,8.8433]
[1753989820590,3.25,176.3,176.28,3.17]
[1753989820983,3.25,176.29,176.26,12.27821547]
[1753989821184,3.25,176.29,176.27,3.17]
[1753989821389,6.60451547,176.36,176.26,12.27821547]
[1753989821590,3.25,176.35,176.26,12.27821547]
[1753989822091,3.25,176.29,176.27,5.6735]
[1753989822290,3.25,176.29,176.27,8.8435]
[1753989823190,5.673,176.29,176.26,12.27821547]
[1753989823391,3.25,176.28,176.26,15.44821547]
[1753989823894,3.25,176.28,176.27,3.17]
[1753989824494,3.25,176.28,176.26,3.17]
[1753989825094,3.25,176.28,176.26,5.6736]
[1753989825392,3.25,176.28,176.27,3.17]
[1753989825594,3.25,176.28,176.27,5.6735]
[1753989825796,3.25,176.28,176.25,11.3293205]
[1753989826093,3.25,176.28,176.26,3.17]
[1753989826282,3.25,176.28,176.27,3.17]
[1753989827692,3.25,176.28,176.26,5.6738]
[1753989827895,3.25,176.28,176.26,8.8438]
[1753989828296,8.9232,176.28,176.26,8.8438]
[1753989828496,3.25,176.28,176.26,8.8438]
[1753989829396,3.25,176.3,176.29,3.17]
[1753989829589,3.25,176.3,176.27,6.60451547]
[1753989829790,3.25,176.29,176.28,3.17]
[1753989830199,6.60451547,176.37,176.27,6.60451547]
[1753989830400,17.94661547,176.35,176.26,3.17]
[1753989830589,3.25,176.32,176.24,7.89480503]
[1753989830789,3.25,176.24,176.23,4.72480503]
[1753989831000,3.25,176.24,176.21,4.72480503]
[1753989831194,5.6751,176.22,176.2,4.72480503]
[1753989831390,3.25,176.21,176.2,4.72480503]
[1753989831791,3.25,176.2,176.19,4.72480503]
[1753989832000,3.25,176.2,176.19,3.17]
[1753989832301,3.25,176.21,176.19,8.8461]
[1753989832503,3.25,176.26,176.17,6.60451547]
[1753989832697,6.60451547,176.25,176.15,9.48304878]
[1753989832903,5.6763,176.19,176.15,3.17]
[1753989833102,3.25,176.17,176.15,3.17]
[1753989833305,3.25,176.17,176.16,3.17]
[1753989833707,3.25,176.17,176.16,8.847]
[1753989834502,3.25,176.18,176.17,5.6767]
[1753989834806,3.25,176.18,176.17,8.8467]
[1753989835501,3.25,176.18,176.17,3.17]
[1753989836602,3.25,176.18,176.17,8.8467]
[1753989837305,3.25,176.2,176.17,8.8467]
[1753989837601,3.25,176.18,176.17,8.8467]
[1753989837806,3.25,176.2,176.17,3.17]
[1753989838002,3.25,176.2,176.19,3.17]
[1753989838799,3.18,176.27,176.19,3.17]
[1753989838997,3.18,176.27,176.22,6.60451547]
[1753989839204,3.18,176.27,176.23,3.08]
[1753989839407,8.8537,176.27,176.23,8.7547]
[1753989839605,3.18,176.25,176.23,8.7547]
[1753989839999,3.18,176.24,176.23,8.7547]
[1753989840206,6.60451547,176.3,176.2,9.68451547]
[1753989840507,3.18,176.29,176.2,9.68451547]
[1753989840903,3.18,176.29,176.21,3.08]
[1753989841097,5.6736,176.27,176.22,5.6751]
[1753989841301,3.18,176.26,176.22,3.08]
[1753989841707,3.18,176.29,176.2,6.60451547]
[1753989842510,3.18,176.29,176.2,9.68451547]
[1753989842801,3.18,176.29,176.21,4.0585931]
[1753989843006,5.6744,176.25,176.21,12.8139931]
[1753989843197,5.6744,176.25,176.22,3.08]
[1753989843401,4.0585931,176.3,176.21,7.1385931]
[1753989843706,4.0585931,176.26,176.17,7.1385931]
[1753989844005,3.18,176.23,176.15,3.08]
[1753989844209,3.18,176.18,176.15,7.1385931]
[1753989844410,3.18,176.17,176.15,7.1385931]
[1753989844615,3.18,176.17,176.15,4.0585931]
[1753989844905,3.18,176.19,176.16,8.7569]
[1753989845211,3.18,176.17,176.15,4.0585931]
[1753989845508,3.18,176.16,176.15,4.0585931]
[1753989846109,5.6769,176.17,176.13,9.7364931]
[1753989846299,3.18,176.16,176.13,7.1385931]
[1753989846499,3.18,176.15,176.13,7.1385931]
[1753989846704,3.18,176.15,176.09,3.08]
[1753989846914,3.18,176.14,176.12,7.1385931]
[1753989847412,3.18,176.14,176.12,12.8166931]
[1753989847607,3.18,176.14,176.13,3.08]
[1753989847911,3.18,176.16,176.14,3.08]
[1753989848108,3.18,176.18,176.15,3.08]
[1753989848407,3.18,176.17,176.16,3.08]
[1753989848609,3.18,176.17,176.15,3.08]
[1753989848809,3.18,176.17,176.16,4.0585931]
[1753989849111,4.0585931,176.23,176.08,425.32]
[1753989849112,3.18,176.16,176.14,7.1385931]
[1753989849412,3.18,176.15,176.14,7.1385931]
[1753989849708,3.18,176.15,176.14,4.0585931]
[1753989850307,3.18,176.15,176.12,4.0585931]
[1753989850511,5.6766,176.18,176.12,7.1385931]
[1753989850708,3.18,176.17,176.13,3.08]
[1753989851308,3.18,176.17,176.14,5.6777]
[1753989851509,3.18,176.18,176.13,3.08]
[1753989851712,3.18,176.17,176.13,3.08]
[1753989851907,11.3467,176.28,176.14,6.62025585]
[1753989852110,3.18,176.18,176.16,3.08]
[1753989852713,3.18,176.18,176.17,5.6767]
[1753989852913,3.18,176.18,176.16,3.08]
[1753989853109,3.18,176.17,176.16,3.08]
[1753989853517,3.18,176.17,176.16,8.7569]
[1753989854323,3.18,176.18,176.17,5.6767]
[1753989854524,3.18,176.18,176.17,8.7567]
[1753989854710,6.62025585,176.25,176.18,5.6764]
[1753989854711,3.18,176.2,176.18,5.6764]
[1753989855015,3.18,176.19,176.17,3.08]
[1753989855211,6.62025585,176.25,176.17,3.08]
[1753989855412,3.18,176.18,176.17,3.08]
[1753989856011,3.18,176.18,176.17,5.6765]
[1753989856216,0.98810301,176.26,176.16,6.62025585]
[1753989856418,3.18,176.17,176.16,6.62025585]
[1753989856611,3.18,176.17,176.14,3.08]
[1753989856818,3.18,176.15,176.14,3.08]
[1753989857013,5.6759,176.2,176.14,3.08]
[1753989857319,3.18,176.21,176.15,3.08]
[1753989857617,5.6767,176.18,176.14,5.6776]
[1753989857816,3.18,176.17,176.14,5.6776]
[1753989858207,3.18,176.17,176.11,3.08]
[1753989858411,3.18,176.17,176.11,9.70025585]
[1753989858812,6.62025585,176.19,176.1,5.6789]
[1753989859119,3.18,176.18,176.09,3.08]
[1753989859310,3.18,176.16,176.07,6.62025585]
[1753989859610,3.18,176.16,176.07,9.70025585]
[1753989859817,3.18,176.1,176.08,8.7595]
[1753989860208,3.18,176.09,176.07,3.08]
[1753989860409,3.18,176.08,176.05,9.70025585]
[1753989860617,3.18,176.08,176.05,6.62025585]
[1753989860820,3.18,176.08,176.06,3.08]
[1753989861206,3.18,176.08,176.07,8.76]
[1753989861406,3.18,176.08,176.07,3.08]
[1753989861608,5.6798,176.08,176.05,8.7606]
[1753989861806,3.18,176.07,176.05,8.7606]
[1753989862010,3.18,176.06,176.05,8.7606]
[1753989862406,11.3513,176.21,175.96,3.08]
[1753989862407,6.62025585,176.08,175.96,3.08]
[1753989862609,3.18,176.07,175.99,6.62025585]
[1753989862817,3.18,176.09,176.01,5.6816]
[1753989863317,3.18,176.09,176.0,3.08]
[1753989863520,3.18,176.09,176.01,9.70025585]
[1753989864008,6.62025585,176.12,176.03,5.681]
[1753989864209,3.18,176.11,176.03,8.761]
[1753989864414,5.6801,176.07,176.03,5.6812]
[1753989864616,3.18,176.06,176.03,5.6812]
[1753989864918,3.18,176.06,175.99,3.08]
[1753989865114,3.18,176.04,176.02,5.6814]
[1753989865325,3.18,176.09,175.99,3.08]
[1753989865523,3.18,176.09,176.0,5.6821]
[1753989865524,5.6812,176.04,176.0,5.6821]
[1753989865726,3.18,176.03,175.99,3.08]
[1753989865921,6.62025585,176.08,175.99,3.08]
[1753989866213,3.18,176.02,176.0,3.08]
[1753989866517,3.18,176.0,175.98,8.7628]
[1753989867023,3.18,176.0,175.98,3.08]
[1753989867412,3.18,176.0,175.96,6.62025585]
[1753989867619,3.18,176.0,175.94,3.08]
[1753989867818,3.18,176.0,175.98,5.6828]
[1753989868025,3.18,176.0,175.94,9.70025585]
[1753989868322,3.18,176.0,175.97,5.6831]
[1753989868619,3.18,176.0,175.94,9.70025585]
[1753989868821,3.18,176.0,175.95,3.1]
[1753989869119,3.18,176.0,175.89,50.62025585]
[1753989869120,3.33,175.99,175.97,3.1]
[1753989869517,3.33,175.99,175.98,5.6826]
[1753989870018,5.6813,176.03,175.98,8.7826]
[1753989870217,3.33,176.02,175.97,5.6831]
[1753989870416,3.33,176.02,175.96,6.62025585]
[1753989870616,3.33,176.02,175.96,9.72025585]
[1753989871422,6.62025585,176.06,175.96,9.72025585]
[1753989871423,5.6821,176.01,175.96,9.72025585]
[1753989871617,6.62025585,176.06,175.97,3.1]
[1753989871819,3.33,175.99,175.97,3.1]
[1753989872020,6.62025585,176.06,175.97,3.1]
[1753989872217,3.33,176.05,175.97,3.1]
[1753989872422,3.33,176.05,175.97,5.6831]
[1753989872622,3.33,176.05,175.96,6.62025585]
[1753989872922,5.6818,176.02,175.98,5.6829]
[1753989873115,4.06997123,176.05,175.98,5.6829]
[1753989873321,3.33,175.99,175.98,5.6829]
[1753989873725,3.33,175.99,175.93,3.1]
[1753989874025,3.33,175.99,175.92,4.06997123]
[1753989874221,4.06997123,176.04,175.96,4.06997123]
[1753989874418,3.33,175.98,175.96,7.16997123]
[1753989874822,3.33,176.04,175.96,4.06997123]
[1753989875218,3.33,176.0,175.98,4.06997123]
[1753989875525,3.33,176.0,175.88,11.3721]
[1753989875727,3.33,176.02,176.0,3.1]
[1753989876128,4.06997123,176.09,176.01,4.06997123]
[1753989876329,3.33,176.18,176.07,4.06997123]
[1753989876531,3.33,176.14,176.07,4.06997123]
[1753989876737,3.33,176.14,176.05,4.06997123]
[1753989877023,392.9529,176.19,175.95,4.06997123]
[1753989877024,4.06997123,176.09,176.01,7.16997123]
[1753989877221,3.33,176.08,176.01,7.16997123]
[1753989877422,3.33,176.08,176.03,4.06997123]
[1753989877619,3.33,176.07,176.05,4.06997123]
[1753989877822,4.06997123,176.14,176.06,3.1]
[1753989878230,3.33,176.08,176.06,3.1]
[1753989879227,3.33,176.08,176.07,4.06997123]
[1753989879624,9.0096,176.08,176.07,4.06997123]
[1753989879822,5.6796,176.08,176.05,4.06997123]
[1753989880021,3.33,176.06,176.01,3.1]
[1753989880221,3.33,176.06,176.05,4.06997123]
[1753989880423,3.33,176.06,176.03,4.06997123]
[1753989880624,4.06997123,176.1,176.01,7.16997123]
[1753989880929,3.33,176.03,176.01,4.06997123]
[1753989881325,3.33,176.02,176.01,4.06997123]
[1753989882634,5.681,176.04,176.01,7.16997123]
[1753989882834,4.06997123,176.12,176.03,4.06997123]
[1753989883032,6.62709652,176.09,175.95,44.0]
[1753989883332,6.62709652,176.03,175.96,3.1]
[1753989883525,3.33,176.02,175.96,3.1]
[1753989883730,9.013,175.98,175.96,3.1]
[1753989883926,3.33,175.97,175.96,3.1]
[1753989884133,3.33,175.99,175.96,3.1]
[1753989884335,3.33,175.98,175.96,3.1]
[1753989884937,6.62709652,176.01,175.93,8.7844]
[1753989885132,3.33,176.0,175.93,3.1]
[1753989885437,3.33,176.0,175.95,6.62709652]
[1753989885639,3.33,176.0,175.97,3.1]
[1753989886037,3.33,176.0,175.98,3.1]
[1753989886234,3.33,176.0,175.92,6.62709652]
[1753989886434,3.33,176.0,175.93,3.1]
[1753989886645,3.33,176.02,175.95,3.1]
[1753989887730,5.6824,176.0,175.95,3.1]
[1753989887929,3.33,175.99,175.95,3.1]
[1753989888131,3.33,175.99,175.96,3.1]
[1753989888333,3.33,175.99,175.96,5.6834]
[1753989888534,3.33,175.99,175.95,3.1]
[1753989889039,3.33,175.98,175.96,3.1]
[1753989889430,3.33,176.0,175.97,5.6829]
[1753989889631,3.33,176.05,175.96,9.72709652]
[1753989889829,5.6823,176.0,175.96,9.72709652]
[1753989890032,3.33,175.99,175.94,9.72709652]
[1753989890233,3.33,175.99,175.92,6.62709652]
[1753989890634,3.33,175.96,175.93,3.1]
[1753989890836,6.62709652,176.0,175.93,3.1]
[1753989891041,3.33,175.94,175.93,3.1]
[1753989891237,3.33,175.96,175.93,3.1]
[1753989891538,3.33,175.95,175.93,5.6843]
[1753989891741,3.33,175.98,175.94,3.1]
[1753989892042,3.33,175.98,175.95,3.1]
[1753989892236,3.33,175.98,175.96,3.1]
[1753989893238,3.33,175.98,175.97,3.1]
[1753989893443,6.62709652,176.04,175.97,3.1]
[1753989893637,3.33,176.0,175.95,3.1]
[1753989893836,3.33,176.0,175.96,6.62709652]
[1753989894035,3.33,176.0,175.99,5.6825]
[1753989894234,3.33,176.0,175.99,3.1]
[1753989894438,3.33,176.06,175.99,3.1]
[1753989894636,5.6809,176.04,176.0,5.682]
[1753989894938,5.6809,176.04,176.0,3.1]
[1753989895140,3.33,176.01,176.0,8.7822]
[1753989895533,6.62709652,176.07,175.99,5.6823]
[1753989895843,3.33,176.0,175.98,3.1]
[1753989896039,3.33,176.02,175.99,3.1]
[1753989896243,6.62709652,176.07,175.99,8.7823]
[1753989896244,3.33,176.06,175.99,8.7823]
[1753989896846,3.33,176.06,176.0,5.6821]
[1753989897446,3.33,176.03,176.0,8.7821]
[1753989897641,3.33,176.02,176.0,8.7821]
[1753989898345,3.01,176.02,176.01,3.21]
[1753989898840,3.01,176.02,176.0,5.6821]
[1753989899046,3.01,176.02,176.0,8.8921]
[1753989899451,3.01,176.02,176.0,3.21]
[1753989899649,5.6813,176.03,175.99,15.51939652]
[1753989899650,3.01,176.01,175.99,15.51939652]
[1753989899844,3.01,176.01,175.99,9.83709652]
[1753989900150,3.01,176.01,176.0,8.8922]
[1753989900449,3.01,176.01,176.0,3.21]
[1753989900748,3.01,176.1,176.0,3.21]
[1753989900949,3.01,176.1,176.04,6.62709652]
[1753989901249,5.6797,176.08,176.03,8.891]
[1753989901443,5.6797,176.08,176.02,6.62709652]
[1753989901444,3.01,176.06,176.04,3.21]
[1753989901644,3.01,176.06,176.05,3.21]
[1753989902048,392.9527,176.19,176.05,3.21]
[1753989902049,3.01,176.18,176.05,3.21]
[1753989902250,3.01,176.18,176.1,3.21]
[1753989902847,3.01,176.18,176.12,3.21]
[1753989903153,3.01,176.19,176.16,3.21]
[1753989903450,3.01,176.18,176.16,3.21]
[1753989904248,3.01,176.18,176.17,4.06145188]
[1753989904846,3.01,176.19,176.17,3.21]
[1753989905456,8.6862,176.19,176.17,3.21]
[1753989905648,3.01,176.21,176.17,3.21]
[1753989905844,3.01,176.2,176.17,3.21]
[1753989906357,3.01,176.19,176.17,3.21]
[1753989907451,3.01,176.18,176.16,9.8269096]
[1753989910157,3.01,176.17,176.16,9.8269096]
[1753989910358,5.6761,176.19,176.16,6.6169096]
[1753989910558,3.01,176.18,176.16,6.6169096]
[1753989910960,3.01,176.18,176.16,9.8269096]
[1753989911550,3.01,176.16,176.15,6.6169096]
[1753989911761,3.01,176.15,176.13,6.6169096]
[1753989911959,3.01,176.23,176.14,3.21]
[1753989912160,3.01,176.23,176.18,9.8269096]
[1753989912356,3.01,176.25,176.21,3.21]
[1753989912652,3.01,176.24,176.22,3.21]
[1753989912961,3.01,176.22,176.2,9.8269096]
[1753989913354,3.01,176.22,176.2,15.5027096]
[1753989913759,3.01,176.22,176.2,9.8269096]
[1753989914160,3.01,176.21,176.2,9.8269096]
[1753989914462,3.01,176.26,176.16,9.8269096]
[1753989914854,6.6169096,176.27,176.16,9.8269096]
[1753989914855,3.01,176.18,176.16,9.8269096]
[1753989915057,3.01,176.16,176.13,3.21]
[1753989915255,3.01,176.24,176.16,5.6768]
[1753989915456,3.01,176.24,176.17,9.8269096]
[1753989915659,3.01,176.23,176.2,3.21]
[1753989915863,8.6848,176.23,176.21,9.8269096]
[1753989916360,3.01,176.23,176.21,9.8269096]
[1753989916664,3.01,176.23,176.21,15.5023096]
[1753989916962,3.01,176.23,176.21,9.8269096]
[1753989917170,3.01,176.22,176.21,9.8269096]
[1753989918063,3.01,176.22,176.21,6.6169096]
[1753989918363,3.01,176.25,176.23,3.21]
[1753989918561,3.01,176.25,176.23,9.8269096]
[1753989919264,3.01,176.25,176.24,5.6745]
[1753989919565,3.01,176.26,176.24,8.8845]
[1753989920463,3.01,176.31,176.25,6.6169096]
[1753989920657,3.01,176.31,176.25,9.8269096]
[1753989920862,3.01,176.31,176.25,6.6169096]
[1753989921060,5.6737,176.27,176.25,6.6169096]
[1753989921268,3.01,176.26,176.25,6.6169096]
[1753989921564,8.6838,176.26,176.25,6.6169096]
[1753989921759,3.01,176.26,176.25,6.6169096]
[1753989924260,3.01,176.26,176.21,6.6169096]
[1753989924658,5.6754,176.22,176.18,5.6761]
[1753989924861,4.06031831,176.24,176.17,4.06031831]
[1753989925066,3.01,176.23,176.15,7.27031831]
[1753989925466,3.01,176.23,176.07,381.7]
[1753989925467,3.01,176.21,176.13,4.06031831]
[1753989925866,3.01,176.16,176.14,5.6775]
[1753989926066,3.01,176.16,176.14,8.8875]
[1753989926263,3.01,176.14,176.12,5.6782]
[1753989926461,3.01,176.19,176.14,3.21]
[1753989926664,3.01,176.21,176.18,3.21]
[1753989926865,3.01,176.2,176.18,3.21]
[1753989927659,106.6,176.24,176.18,3.21]
[1753989927864,3.01,176.23,176.18,3.21]
[1753989928064,3.01,176.23,176.21,9.82651236]
[1753989928570,3.14,176.22,176.21,6.61651236]
[1753989929269,3.14,176.24,176.21,9.63651236]
[1753989929478,3.14,176.23,176.21,9.63651236]
[1753989929673,3.14,176.23,176.22,5.6751]
[1753989929874,106.58,176.29,176.22,3.02]
[1753989930069,5.6736,176.27,176.24,5.6744]
[1753989930269,3.14,176.26,176.24,5.6744]
[1753989931070,3.14,176.25,176.24,3.02]
[1753989931276,3.14,176.25,176.23,3.02]
[1753989931577,3.14,176.25,176.23,9.63651236]
[1753989932171,3.14,176.25,176.24,5.6745]
[1753989932970,3.14,176.27,176.24,8.6945]
[1753989933178,3.14,176.26,176.24,8.6945]
[1753989933477,106.58,176.29,176.23,6.61651236]
[1753989933676,3.14,176.28,176.21,6.61651236]
[1753989934274,3.14,176.28,176.21,12.29171236]
[1753989934773,3.14,176.23,176.21,15.31171236]
[1753989936078,3.14,176.23,176.22,5.6751]
[1753989936480,3.14,176.23,176.21,9.63651236]
[1753989936676,3.14,176.23,176.21,15.31181236]
[1753989937076,3.14,176.23,176.22,3.02]
[1753989937270,3.14,176.24,176.22,8.6949]
[1753989937777,3.14,176.23,176.21,6.61651236]
[1753989937980,3.14,176.28,176.18,6.61651236]
[1753989938180,5.6753,176.22,176.19,5.6759]
[1753989938386,3.14,176.21,176.19,3.02]
[1753989938579,3.14,176.2,176.18,6.61651236]
[1753989938779,3.14,176.2,176.19,3.02]
[1753989939083,5.6749,176.23,176.19,3.02]
[1753989939383,3.14,176.28,176.18,6.61651236]
[1753989939584,3.14,176.28,176.18,12.29281236]
[1753989940087,5.676,176.2,176.18,6.61651236]
[1753989940286,3.14,176.19,176.18,6.61651236]
[1753989940785,6.61651236,176.27,176.18,9.63651236]
[1753989940786,3.14,176.21,176.18,9.63651236]
[1753989940986,3.14,176.2,176.18,9.63651236]
[1753989941982,5.6756,176.21,176.18,15.31281236]
[1753989942178,3.14,176.19,176.18,12.29281236]
[1753989942375,3.14,176.19,176.18,15.31281236]
[1753989942579,6.61651236,176.25,176.14,9.63651236]
[1753989942778,3.14,176.22,176.12,6.61651236]
[1753989942982,3.14,176.22,176.12,9.63651236]
[1753989943287,3.14,176.2,176.12,3.02]
[1753989943784,3.14,176.2,176.13,5.678]
[1753989944180,3.14,176.15,176.13,8.698]
[1753989944384,5.6771,176.16,176.14,3.02]
[1753989944581,3.14,176.15,176.14,3.02]
[1753989944778,3.14,176.15,176.12,12.29471236]
[1753989945087,3.14,176.16,176.14,3.02]
[1753989945282,3.14,176.21,176.12,6.61651236]
[1753989945983,3.14,176.21,176.12,15.31481236]
[1753989946385,5.677,176.17,176.13,5.6778]
[1753989946678,6.61651236,176.22,176.13,5.6778]
[1753989946679,3.14,176.16,176.14,3.02]
[1753989946883,3.14,176.15,176.14,3.02]
[1753989947483,3.14,176.15,176.14,8.6977]
[1753989947678,6.61651236,176.22,176.14,3.02]
[1753989947885,3.14,176.21,176.14,6.61651236]
[1753989948085,3.14,176.17,176.15,3.02]
[1753989948387,3.14,176.26,176.17,3.02]
[1753989948592,3.14,176.19,176.17,3.02]
[1753989948886,3.14,176.17,176.16,9.63651236]
[1753989952286,3.14,176.17,176.16,6.61651236]
[1753989952587,3.14,176.17,176.13,3.02]
[1753989952889,3.14,176.17,176.13,7.08224625]
[1753989953289,3.14,176.15,176.13,7.08224625]
[1753989953590,3.14,176.19,176.11,4.06224625]
[1753989954188,3.14,176.19,176.11,9.74084625]
[1753989954385,3.14,176.19,176.11,12.76084625]
[1753989954582,3.14,176.19,176.13,4.06224625]
[1753989954784,8.8171,176.16,176.14,3.02]
[1753989955083,3.14,176.15,176.14,3.02]
[1753989955384,3.14,176.19,176.13,4.06224625]
[1753989955576,4.06224625,176.16,176.08,3.02]
[1753989955779,3.14,176.15,176.08,3.02]
[1753989955982,3.14,176.1,176.08,3.02]
[1753989956180,3.14,176.09,176.08,3.02]
[1753989956382,3.14,176.11,176.07,3.02]
[1753989956678,3.14,176.1,176.08,3.02]
[1753989957084,5.6787,176.11,176.06,6.62442712]
[1753989957283,3.14,176.14,176.05,6.62442712]
[1753989957484,3.14,176.09,176.05,9.64442712]
[1753989958285,3.14,176.09,176.05,3.02]
[1753989958588,6.62442712,176.15,176.05,3.02]
[1753989958890,3.29,176.14,176.05,8.7006]
[1753989959091,5.6789,176.11,176.05,8.7006]
[1753989959283,3.29,176.14,176.05,3.02]
[1753989959479,3.29,176.14,176.05,8.7005]
[1753989959687,3.29,176.14,176.05,3.02]
[1753989960388,3.29,176.1,176.09,3.18]
[1753989960891,3.29,176.11,176.09,3.18]
[1753989961196,3.29,176.16,176.08,3.18]
[1753989961395,3.29,176.11,176.07,9.80442712]
[1753989961589,3.29,176.11,176.05,6.62442712]
[1753989961789,3.29,176.11,176.04,9.80442712]
[1753989961987,3.29,176.11,176.05,3.18]
[1753989962189,6.62442712,176.15,176.06,6.62442712]